bitfinex-derivatives/quotes_BNBF0:USTF0_20250406
["timestamp","ask_amount","ask_price","bid_price","bid_amount"]
[1743913785259,1.399,590.95,590.37,0.29000333]
[1743913786662,1.399,590.95,590.36,1.26423726]
[1743913786859,1.399,590.95,590.38,1.26423726]
[1743913787061,1.399,590.95,590.39,0.29000317]
[1743913789164,1.399,590.95,590.38,0.29000317]
[1743913790165,1.399,590.95,590.39,0.29000337]
[1743913790366,1.399,590.95,590.38,0.29000337]
[1743913790565,1.399,590.95,590.39,0.29000337]
[1743913790766,1.399,590.95,590.38,0.29000337]
[1743913790966,1.399,590.95,590.39,0.29000337]
[1743913791262,1.399,590.95,590.4,0.29000337]
[1743913791467,1.399,590.95,590.38,0.29000337]
[1743913791668,1.399,590.95,590.37,1.26423726]
[1743913791862,1.399,590.95,590.38,0.29000217]
[1743913792864,1.399,590.95,590.39,1.26423726]
[1743913793067,1.399,590.95,590.4,0.29000217]
[1743913793263,1.399,590.95,590.39,1.26423726]
[1743913793464,1.399,590.95,590.4,0.29000362]
[1743913794969,1.399,590.95,590.38,0.29000362]
[1743913795169,1.399,590.95,590.37,1.26423726]
[1743913795368,1.399,590.95,590.38,0.29000366]
[1743913799075,1.399,590.95,590.38,1.26423726]
[1743913799274,1.399,590.95,590.39,0.29000336]
[1743913800174,1.399,590.95,590.38,1.26423726]
[1743913800371,1.399,590.95,590.39,0.29000351]
[1743913801773,1.399,590.95,590.37,1.26423726]
[1743913803681,1.399,590.95,590.38,0.29002964]
[1743913804976,1.399,590.95,590.39,0.29002964]
[1743913805181,1.399,590.95,590.2,0.29002964]
[1743913805379,1.399,590.95,590.19,0.33887392]
[1743913805579,1.399,590.95,590.2,0.29002572]
[1743913807381,1.399,590.95,590.19,0.33887392]
[1743913807582,1.399,590.95,590.2,0.28999553]
[1743913808178,1.399,590.95,590.19,0.33887392]
[1743913808383,1.399,590.95,590.2,0.28999217]
[1743913808883,1.399,590.95,590.19,0.33887392]
[1743913809083,1.399,590.95,590.2,0.28999186]
[1743913809282,1.399,590.95,590.28,1.26423726]
[1743913809476,1.399,590.95,590.29,0.28999186]
[1743913813186,1.399,590.95,590.27,1.26423726]
[1743913813487,1.399,590.95,590.28,0.28999213]
[1743913813889,1.399,590.95,590.27,1.26423726]
[1743913814087,1.399,590.95,590.28,0.28999136]
[1743913816983,1.399,590.95,590.29,0.28999136]
[1743913817183,1.399,590.95,590.26,0.28999136]
[1743913817383,1.399,590.95,590.27,0.28999136]
[1743913817587,1.399,590.95,590.26,0.28999136]
[1743913817788,1.399,590.95,590.27,0.28999136]
[1743913817988,1.399,590.95,590.26,0.28999136]
[1743913818185,1.399,590.95,590.25,1.26423726]
[1743913818386,1.399,590.95,590.26,0.2899924]
[1743913819196,1.399,590.95,590.35,1.26423726]
[1743913819498,1.399,590.95,590.36,0.2899924]
[1743913820097,1.399,590.95,590.35,1.26423726]
[1743913820289,1.399,590.95,590.36,0.28999185]
[1743913821697,1.399,590.95,590.3,0.28999185]
[1743913821896,1.399,590.95,590.31,0.28999185]
[1743913822091,1.399,590.95,590.3,0.28999185]
[1743913822294,1.399,590.95,590.31,0.28999185]
[1743913822495,1.399,590.95,590.3,0.28999185]
[1743913823298,1.399,590.95,590.29,1.26423726]
[1743913823599,1.399,590.95,590.3,0.2900058]
[1743913823792,1.399,590.95,590.24,0.2900058]
[1743913827500,1.399,590.95,590.23,0.2900058]
[1743913828300,1.399,590.95,590.22,1.26423726]
[1743913828499,1.399,590.95,590.23,0.29000538]
[1743913829299,1.399,590.95,590.2,0.29000538]
[1743913831792,1.399,590.95,590.19,0.33887392]
[1743913831997,1.399,590.95,590.2,0.28999164]
[1743913833301,1.399,590.95,590.23,1.26423726]
[1743913833596,1.399,590.95,590.24,0.28999164]
[1743913835298,1.399,590.95,590.24,1.5542289]
[1743913835501,1.399,590.95,590.25,0.28999164]
[1743913836808,1.399,590.95,590.24,1.26423726]
[1743913837107,1.399,590.95,590.25,0.28999186]
[1743913837509,1.399,590.95,590.29,1.26423726]
[1743913837708,1.399,590.95,590.3,0.28999186]
[1743913840209,1.399,590.95,590.29,1.26423726]
[1743913840413,1.399,590.95,590.3,0.28999061]
[1743913840912,1.399,590.95,590.37,1.26423726]
[1743913841109,1.399,590.95,590.38,0.28999061]
[1743913843512,1.399,590.95,590.37,1.26423726]
[1743913843810,1.399,590.95,590.38,0.28997668]
[1743913845411,1.399,590.95,590.39,0.28997388]
[1743913845610,1.399,590.95,590.34,0.28997388]
[1743913848114,1.399,590.95,590.32,0.28997388]
[1743913848615,1.399,590.95,590.31,1.26423726]
[1743913848818,1.399,590.95,590.32,0.28997279]
[1743913850719,1.399,590.95,590.31,0.28997279]
[1743913850917,1.399,590.95,590.32,0.28997279]
[1743913851118,1.399,590.95,590.31,0.28997279]
[1743913851315,1.399,590.95,590.32,0.28997279]
[1743913851516,1.399,590.95,590.31,0.28997279]
[1743913853621,1.399,590.95,590.3,0.28997279]
[1743913860527,1.399,590.95,590.3,1.55421005]
[1743913860727,1.399,590.95,590.31,0.28997279]
[1743913861823,1.399,590.95,590.3,1.26423726]
[1743913862024,1.399,590.95,590.31,0.28997423]
[1743913862929,1.399,590.95,590.31,1.55421149]
[1743913863124,1.399,590.95,590.32,0.28997423]
[1743913863530,1.399,590.95,590.31,1.26423726]
[1743913863731,1.399,590.95,590.32,0.2899749]
[1743913869633,1.399,590.95,590.35,1.26423726]
[1743913869832,1.399,590.95,590.36,0.2899749]
[1743913873236,1.399,590.95,590.35,0.2899749]
[1743913873437,1.399,590.95,590.36,0.2899749]
[1743913873641,1.399,590.95,590.35,0.2899749]
[1743913873838,1.399,590.95,590.36,0.2899749]
[1743913874035,1.399,590.95,590.35,0.2899749]
[1743913875340,1.399,590.95,590.21,0.2899749]
[1743913878537,1.399,590.95,590.2,0.2899749]
[1743913878743,1.399,590.95,590.21,0.2899749]
[1743913879040,1.399,590.95,590.22,0.2899749]
[1743913879245,1.399,590.95,590.2,0.2899749]
[1743913879445,1.399,590.95,590.21,0.2899749]
[1743913879641,1.399,590.95,590.2,0.2899749]
[1743913880648,1.399,590.95,590.19,1.60311118]
[1743913880948,1.399,590.95,590.2,0.29001414]
[1743913882345,1.399,590.95,590.19,1.60311118]
[1743913882545,1.399,590.95,590.2,0.29001284]
[1743913883446,1.399,590.95,590.24,1.26423726]
[1743913883650,1.399,590.95,590.25,0.29001284]
[1743913885849,1.399,590.95,590.24,1.26423726]
[1743913886049,1.399,590.95,590.32,1.26423726]
[1743913886248,1.399,590.95,590.33,0.29001193]
[1743913889152,1.399,590.95,590.32,1.26423726]
[1743913889352,1.399,590.95,590.33,0.29000309]
[1743913891154,1.399,590.95,590.34,0.29000478]
[1743913891350,1.399,590.95,590.25,0.29000478]
[1743913891554,1.399,590.95,590.26,0.29000478]
[1743913891755,1.399,590.95,590.25,0.29000478]
[1743913891955,1.399,590.95,590.26,0.29000478]
[1743913892255,1.399,590.95,590.27,0.29000478]
[1743913892459,1.399,590.95,590.25,0.29000478]
[1743913892654,1.399,590.95,590.24,1.26423726]
[1743913892854,1.399,590.95,590.25,0.29000476]
[1743913893057,1.399,590.95,590.25,1.55424202]
[1743913893356,1.399,590.95,590.26,0.29000476]
[1743913895459,1.399,590.95,590.26,1.55424202]
[1743913895660,1.399,590.95,590.27,0.29000476]
[1743913896261,1.399,590.95,590.26,1.26423726]
[1743913896459,1.399,590.95,590.27,0.29000296]
[1743913897259,1.399,590.95,590.33,1.26423726]
[1743913897460,1.399,590.95,590.34,0.29000296]
[1743913899160,1.399,590.95,590.37,1.26423726]
[1743913899360,1.399,590.95,590.38,0.29000296]
[1743913901355,1.399,590.95,590.19,0.33887392]
[1743913901356,1.399,590.95,590.31,1.26423726]
[1743913901555,1.399,590.95,590.32,0.29000328]
[1743913903165,1.399,590.95,590.31,1.26423726]
[1743913903365,1.399,590.95,590.32,0.29001626]
[1743913905470,1.399,590.95,590.31,1.26423726]
[1743913905768,1.399,590.95,590.32,0.29001594]
[1743913906471,1.399,590.95,590.33,0.29001594]
[1743913906669,1.399,590.95,590.28,0.29001594]
[1743913906869,1.399,590.95,590.29,0.29001594]
[1743913907070,1.399,590.95,590.28,0.29001594]
[1743913907370,1.399,590.95,590.29,0.29001594]
[1743913907574,1.399,590.95,590.28,0.29001594]
[1743913907766,1.399,590.95,590.29,0.29001594]
[1743913907966,1.399,590.95,590.28,0.29001594]
[1743913908165,1.399,590.95,590.27,1.26423726]
[1743913908369,1.399,590.95,590.28,1.55425379]
[1743913908571,1.399,590.95,590.29,0.29001653]
[1743913909874,1.399,590.95,590.28,1.26423726]
[1743913910173,1.399,590.95,590.29,0.29001712]
[1743913910571,1.399,590.95,590.27,1.26423726]
[1743913910768,1.399,590.95,590.28,0.29001546]
[1743913912973,1.399,590.95,590.31,1.26423726]
[1743913913177,1.399,590.95,590.32,0.29001546]
[1743913913374,1.399,590.95,590.31,1.26423726]
[1743913913569,1.399,590.95,590.32,0.29002018]
[1743913914874,1.399,590.95,590.31,1.26423726]
[1743913915074,1.399,590.95,590.32,0.29001656]
[1743913915371,1.399,590.95,590.33,1.26423726]
[1743913915569,1.399,590.95,590.34,0.29001656]
[1743913917574,1.399,590.95,590.28,0.29001656]
[1743913917771,1.399,590.95,590.27,1.26423726]
[1743913917772,1.399,590.95,590.29,0.29001656]
[1743913917970,1.399,590.95,590.28,0.29001656]
[1743913918273,1.399,590.95,590.29,0.29001656]
[1743913918473,1.399,590.95,590.28,0.29001656]
[1743913919979,1.399,590.95,590.27,1.26423726]
[1743913920171,1.399,590.95,590.28,0.29002024]
[1743913920374,1.399,590.95,590.2,0.29002024]
[1743913920677,1.399,590.95,590.19,1.60311118]
[1743913920879,1.399,590.95,590.2,0.29002021]
[1743913924891,1.399,590.95,590.2,1.55425747]
[1743913925283,1.399,590.95,590.21,0.29002021]
[1743913926385,1.399,590.95,590.2,1.26423726]
[1743913926584,1.399,590.95,590.21,0.29001718]
[1743913926984,1.399,590.95,590.26,1.26423726]
[1743913927187,1.399,590.95,590.27,0.29001718]
[1743913927687,1.399,590.95,590.26,1.26423726]
[1743913927881,1.399,590.95,590.27,0.29001713]
[1743913929688,1.399,590.95,590.26,1.26423726]
[1743913929886,1.399,590.95,590.27,0.29000827]
[1743913930190,1.399,590.95,590.29,1.26423726]
[1743913930387,1.399,590.95,590.3,0.29000827]
[1743913931789,1.399,590.95,590.31,1.26423726]
[1743913931989,1.399,590.95,590.32,0.29000827]
[1743913934191,1.399,590.95,590.31,0.29000827]
[1743913934384,1.399,590.95,590.32,0.29000827]
[1743913934586,1.399,590.95,590.31,0.29000827]
[1743913934886,1.399,590.95,590.32,0.29000827]
[1743913935087,1.399,590.95,590.31,0.29000827]
[1743913935892,1.399,590.95,590.32,1.26423726]
[1743913936098,1.399,590.95,590.33,0.29001454]
[1743913936593,1.399,590.95,590.32,1.26423726]
[1743913936791,1.399,590.95,590.33,0.29001773]
[1743913938196,1.399,590.95,590.32,1.26423726]
[1743913938392,1.399,590.95,590.33,0.29001831]
[1743913940592,1.399,590.95,590.32,1.26423726]
[1743913940795,1.399,590.95,590.38,1.26423726]
[1743913940996,1.399,590.95,590.39,0.29001761]
[1743913942898,1.399,590.95,590.37,0.29001761]
[1743913943100,1.399,590.95,590.38,0.29001761]
[1743913943295,1.399,590.95,590.37,0.29001761]
[1743913943499,1.399,590.95,590.38,0.29001761]
[1743913943699,1.399,590.95,590.37,0.29001761]
[1743913945002,1.399,590.95,590.38,0.29001914]
[1743913945198,1.399,590.95,590.31,0.29001914]
[1743913945402,1.399,590.95,590.32,0.29001914]
[1743913945702,1.399,590.95,590.31,0.29001914]
[1743913945903,1.399,590.95,590.32,0.29001914]
[1743913946099,1.399,590.95,590.31,0.29001914]
[1743913946704,1.399,590.95,590.3,1.26423726]
[1743913946904,1.399,590.95,590.31,0.29001732]
[1743913951808,1.399,590.95,590.32,0.29001088]
[1743913952007,1.399,590.95,590.31,0.29001088]
[1743913952203,1.399,590.95,590.32,0.29001088]
[1743913952508,1.399,590.95,590.33,0.29001088]
[1743913952702,1.399,590.95,590.31,0.29001088]
[1743913952906,1.399,590.95,590.32,0.29001088]
[1743913953102,1.399,590.95,590.31,0.29001088]
[1743913953305,1.399,590.95,590.32,0.29001088]
[1743913953507,1.399,590.95,590.31,0.29001088]
[1743913955302,1.399,590.95,590.26,0.29001088]
[1743913957511,1.399,590.95,590.32,1.26423726]
[1743913957710,1.399,590.95,590.33,0.29001088]
[1743913961013,1.399,590.95,590.31,0.29001088]
[1743913963316,1.399,590.95,590.37,1.26423726]
[1743913963611,1.399,590.95,590.38,0.29001088]
[1743913965117,1.399,590.95,590.37,1.26423726]
[1743913965319,1.399,590.95,590.39,0.29001768]
[1743913965514,1.399,590.95,590.4,0.29001768]
[1743913965715,1.399,590.95,590.38,0.29001768]
[1743913966018,1.399,590.95,590.39,0.29001768]
[1743913966212,1.399,590.95,590.34,0.29001768]
[1743913966514,1.399,590.95,590.35,0.29001768]
[1743913966718,1.399,590.95,590.34,0.29001768]
[1743913967719,1.399,590.95,590.34,1.55425494]
[1743913967918,1.399,590.95,590.35,0.29001768]
[1743913968519,1.399,590.95,590.34,1.26423726]
[1743913968716,1.399,590.95,590.35,0.29002733]
[1743913970624,1.399,590.95,590.3,0.29002733]
[1743913972025,1.399,590.95,590.29,1.26423726]
[1743913972224,1.399,590.95,590.3,0.29005022]
[1743913972924,1.399,590.95,590.31,0.29005022]
[1743913973125,1.399,590.95,590.27,0.29005022]
[1743913973325,1.399,590.95,590.28,0.29005022]
[1743913973525,1.399,590.95,590.27,0.29005022]
[1743913973726,1.399,590.95,590.26,1.26423726]
[1743913973925,1.399,590.95,590.27,0.29004787]
[1743913975325,1.399,590.95,590.26,1.26423726]
[1743913975525,1.399,590.95,590.27,0.29005448]
[1743913977123,1.399,590.95,590.24,0.29005448]
[1743913977422,1.399,590.95,590.25,0.29005448]
[1743913977628,1.399,590.95,590.24,0.29005448]
[1743913979931,1.399,590.95,590.2,0.29005448]
[1743913987842,1.399,590.95,590.19,0.33887392]
[1743913988036,1.399,590.95,590.2,0.29004429]
[1743913988943,1.399,590.95,590.21,0.29004369]
[1743913989137,1.399,590.95,590.2,0.29004369]
[1743913993947,1.399,590.95,590.19,0.33887392]
[1743913994147,1.399,590.95,590.2,0.29004385]
[1743913995546,1.399,590.95,590.19,0.33887392]
[1743913995745,1.399,590.95,590.2,0.28998268]
[1743913996152,1.399,590.95,590.33,1.26423726]
[1743913996349,1.399,590.95,590.34,0.28998268]
[1743913997346,1.399,590.95,590.33,1.26423726]
[1743913997548,1.399,590.95,590.34,0.2899798]
[1743913998548,1.399,590.95,590.35,0.2899798]
[1743913998748,1.399,590.95,590.33,0.2899798]
[1743913998949,1.399,590.95,590.34,0.2899798]
[1743913999149,1.399,590.95,590.33,0.2899798]
[1743913999349,1.399,590.95,590.34,0.2899798]
[1743913999549,1.399,590.95,590.35,0.2899798]
[1743913999749,1.399,590.95,590.33,0.2899798]
[1743913999952,1.399,590.95,590.34,0.2899798]
[1743914000146,1.399,590.95,590.33,0.2899798]
[1743914000452,1.399,590.95,590.34,0.2899798]
[1743914000752,1.399,590.95,590.35,0.28997385]
[1743914000949,1.399,590.95,590.33,0.28997385]
[1743914001158,1.399,590.95,590.34,0.28997385]
[1743914003457,1.399,590.95,590.34,1.55421111]
[1743914003658,1.399,590.95,590.35,0.28997385]
[1743914005861,1.399,590.95,590.36,0.28997385]
[1743914006060,1.399,590.95,590.33,0.28997385]
[1743914006261,1.399,590.95,590.34,0.28997385]
[1743914006460,1.399,590.95,590.33,0.28997385]
[1743914007456,1.399,590.95,590.32,1.26423726]
[1743914007664,1.399,590.95,590.33,0.28997973]
[1743914009262,1.399,590.95,590.19,0.33887392]
[1743914021966,1.399,590.95,589.68,1.26423726]
[1743914022166,1.399,590.95,589.69,0.62927489]
[1743914022367,1.399,590.95,589.7,0.62926914]
[1743914022566,0.29468051,590.94,589.71,0.33914975]
[1743914022867,0.29468051,590.94,589.72,0.29012789]
[1743914023063,0.29468051,590.94,589.73,0.33913824]
[1743914023368,0.29468051,590.94,589.74,0.29012789]
[1743914023668,0.29468051,590.94,589.75,0.33912674]
[1743914023863,0.29468051,590.94,589.76,0.29012789]
[1743914024068,0.29468051,590.94,589.77,0.33911524]
[1743914024368,1.51618276,592.3,589.78,0.29013099]
[1743914024563,0.33773514,592.18,589.79,0.33910374]
[1743914024769,0.31117684,592.17,589.8,0.29013099]
[1743914024971,0.3378036,592.06,589.81,0.33909225]
[1743914025270,0.31117684,592.05,589.82,0.29013099]
[1743914025465,0.33787208,591.94,589.83,0.33908075]
[1743914025668,0.31117684,591.93,589.84,0.29013099]
[1743914025966,0.33793487,591.83,589.85,0.29013772]
[1743914026169,0.3111833,591.82,589.85,0.29013772]
[1743914026371,0.33795201,591.8,589.85,0.29013772]
[1743914026570,0.33795201,591.8,589.84,0.339075]
[1743914026571,0.31118241,591.79,589.86,0.2901368]
[1743914026771,0.33796914,591.77,589.85,0.2901368]
[1743914026972,0.31118241,591.76,589.86,0.2901368]
[1743914027270,0.31118241,591.76,589.84,0.339075]
[1743914027271,0.33798627,591.74,589.87,0.2901368]
[1743914027472,0.31118241,591.73,589.85,0.2901368]
[1743914027667,0.33800341,591.71,589.84,0.339075]
[1743914027870,0.31118229,591.7,589.85,0.29013669]
[1743914028068,0.33802055,591.68,589.85,0.29013669]
[1743914028370,0.31118229,591.67,589.85,0.29013669]
[1743914028574,0.33803769,591.65,589.85,0.29013669]
[1743914028769,0.31118229,591.64,589.85,0.29013669]
[1743914028970,0.33805483,591.62,589.85,0.29013669]
[1743914029170,0.33805483,591.62,589.84,0.339075]
[1743914029369,0.31120605,591.61,589.85,0.29016022]
[1743914029572,0.33807197,591.59,589.85,0.29016022]
[1743914029869,0.31120605,591.58,589.85,0.29016022]
[1743914030175,0.33808912,591.56,589.85,0.29016022]
[1743914030374,0.31120605,591.55,589.85,0.29016022]
[1743914030673,0.33810626,591.53,589.85,0.29016022]
[1743914030877,0.31120605,591.52,589.85,0.29016022]
[1743914031078,0.33812341,591.5,589.85,0.29016022]
[1743914031377,0.31120605,591.49,589.85,0.29016022]
[1743914031576,0.33814056,591.47,589.85,0.29016022]
[1743914031771,0.31120605,591.46,589.85,0.29016022]
[1743914031976,0.33815771,591.44,589.85,0.29016022]
[1743914032179,0.31120605,591.43,589.85,0.29016022]
[1743914032378,0.33817487,591.41,589.85,0.29016022]
[1743914032679,0.31120605,591.4,589.85,0.29016022]
[1743914032879,0.33819202,591.38,589.85,0.29016022]
[1743914033179,0.31120605,591.37,589.85,0.29016022]
[1743914033372,0.33820918,591.35,589.85,0.29016022]
[1743914034575,0.29458073,591.34,589.85,0.29016022]
[1743914034779,0.33822634,591.32,589.85,0.29016022]
[1743914035780,0.33822634,591.32,589.84,0.339075]
[1743914035981,0.33822634,591.32,589.86,0.29016808]
[1743914036282,0.33822634,591.32,589.87,0.29016808]
[1743914036581,0.29464184,591.31,589.85,0.29016808]
[1743914036787,0.3382435,591.29,589.86,0.29016808]
[1743914037077,0.3382435,591.29,589.85,0.29016808]
[1743914037276,0.3382435,591.29,589.86,0.29016808]
[1743914037477,0.3382435,591.29,589.85,0.29016808]
[1743914037982,0.3382435,591.29,589.84,0.339075]
[1743914039580,0.29465057,591.28,589.84,0.339075]
[1743914039784,0.33826066,591.26,589.84,0.339075]
[1743914042586,0.29465431,591.25,589.84,0.339075]
[1743914042882,0.33827782,591.23,589.84,0.339075]
[1743914045783,0.29465805,591.22,589.84,0.339075]
[1743914045988,0.33829499,591.2,589.84,0.339075]
[1743914048493,0.29467178,591.19,589.84,0.339075]
[1743914048694,0.33831216,591.17,589.84,0.339075]
[1743914049189,1.09,591.16,589.84,0.339075]
[1743914049395,0.33832932,591.14,589.84,0.339075]
[1743914051496,0.29468176,591.13,589.84,0.339075]
[1743914051694,0.3383465,591.11,589.84,0.339075]
[1743914054099,0.3383465,591.11,589.85,0.29018347]
[1743914054502,0.2946855,591.1,589.85,0.29018347]
[1743914054701,0.33835794,591.09,589.85,0.29018347]
[1743914055197,0.33835794,591.09,589.84,0.339075]
[1743914055400,0.33835794,591.09,589.85,0.29018408]
[1743914055897,0.33835794,591.09,589.84,0.339075]
[1743914056101,0.33835794,591.09,589.85,0.29018377]
[1743914057497,0.29468176,591.08,589.85,0.29018377]
[1743914057702,0.33836939,591.07,589.85,0.29018377]
[1743914058702,0.33836939,591.07,589.84,0.339075]
[1743914058899,0.33836939,591.07,589.85,0.29018397]
[1743914060403,0.33836939,591.07,589.86,0.29018401]
[1743914060705,0.33836939,591.07,589.87,0.29018401]
[1743914060899,0.33836939,591.07,589.85,0.29018401]
[1743914061103,0.33836939,591.07,589.86,0.29018401]
[1743914061304,0.33836939,591.07,589.85,0.29018401]
[1743914061505,0.60590405,591.06,589.87,0.29018401]
[1743914061706,0.64961062,591.05,589.88,0.29018401]
[1743914061908,0.33838657,591.04,589.85,0.29018401]
[1743914062108,0.33838657,591.04,589.86,0.29018401]
[1743914062302,0.33838657,591.04,589.85,0.29018401]
[1743914063105,0.33838657,591.04,589.91,1.26423726]
[1743914063303,0.33838657,591.04,589.92,0.29018401]
[1743914063709,0.33838657,591.04,589.91,1.26423726]
[1743914063908,0.31123088,591.03,589.92,0.29018476]
[1743914064108,0.33839802,591.02,589.92,0.29018476]
[1743914064307,0.31123088,591.01,589.92,0.29018476]
[1743914064508,0.33840947,591.0,589.92,0.29018476]
[1743914064807,0.31123088,590.99,589.92,0.29018476]
[1743914065006,0.33842092,590.98,589.92,0.29018476]
[1743914065203,0.31123088,590.97,589.92,0.29018476]
[1743914065403,0.33843238,590.96,589.92,0.29018476]
[1743914065808,0.31125377,590.95,589.92,0.29018476]
[1743914066009,0.33844383,590.94,590.01,1.26423726]
[1743914066311,0.33844383,590.94,590.02,0.29018476]
[1743914067103,0.33844383,590.94,590.01,1.26423726]
[1743914067311,0.3112567,590.93,590.02,0.29021036]
[1743914067509,0.33844383,590.94,590.01,1.26423726]
[1743914068506,0.33844383,590.94,589.94,1.26423726]
[1743914068710,0.33844383,590.94,589.84,0.339075]
[1743914069005,0.33844383,590.94,589.85,0.29025792]
[1743914069505,0.29473042,590.93,589.85,0.29025792]
[1743914069810,0.33845529,590.92,589.85,0.29025792]
[1743914071906,0.31130066,590.91,589.85,0.29025792]
[1743914072110,0.33846674,590.9,589.85,0.29025792]
[1743914072313,0.33846674,590.9,589.86,0.29025381]
[1743914072610,0.33846674,590.9,589.84,0.339075]
[1743914072611,0.31130066,590.89,589.87,0.29025381]
[1743914072811,0.3384782,590.88,589.85,0.29025381]
[1743914073011,0.31130066,590.87,589.85,0.29025381]
[1743914073211,0.33848965,590.86,589.85,0.29025381]
[1743914075414,0.33848965,590.86,589.84,0.339075]
[1743914075612,0.29473666,590.85,589.86,0.29025412]
[1743914075808,0.33850111,590.84,589.87,0.29025412]
[1743914076010,0.33850111,590.84,589.85,0.29025412]
[1743914076212,0.33850111,590.84,589.86,0.29025446]
[1743914076514,0.31130322,590.83,589.87,0.29025446]
[1743914076711,0.33851257,590.82,589.85,0.29025446]
[1743914076908,0.33851257,590.82,589.86,0.29025446]
[1743914077214,1.38151257,590.82,589.84,0.339075]
[1743914077407,1.38151257,590.82,589.85,0.29025683]
[1743914078514,0.29474665,590.81,589.85,0.29025683]
[1743914078715,0.63326495,590.81,589.85,0.29025683]
[1743914079014,0.63326495,590.81,589.86,0.29026209]
[1743914079214,0.63326495,590.81,589.85,0.29026209]
[1743914079414,0.63326495,590.81,589.86,0.29026209]
[1743914079611,0.63326495,590.81,589.87,0.29026209]
[1743914079915,0.63326495,590.81,589.88,0.29026209]
[1743914080116,0.63326495,590.81,589.89,0.29026209]
[1743914080309,0.63326495,590.81,589.85,0.29026209]
[1743914080509,0.63326495,590.81,589.86,0.2902624]
[1743914080714,0.63326495,590.81,589.85,0.2902624]
[1743914081210,0.3385183,590.81,589.85,0.2902624]
[1743914082520,0.29473417,590.8,589.85,0.2902624]
[1743914084220,0.3385183,590.81,589.85,0.2902624]
[1743914084520,0.29473542,590.79,589.85,0.2902624]
[1743914085121,0.813,590.78,589.85,0.2902624]
[1743914087221,0.813,590.78,589.84,0.339075]
[1743914087520,0.813,590.78,589.85,0.29021057]
[1743914088915,0.813,590.78,589.84,0.339075]
[1743914089115,0.813,590.78,589.85,0.2901668]
[1743914091222,0.813,590.78,589.84,0.339075]
[1743914091424,0.813,590.78,589.85,0.29016629]
[1743914092318,0.813,590.78,589.84,0.339075]
[1743914092520,0.813,590.78,589.85,0.29016306]
[1743914094825,0.813,590.78,589.86,0.29016306]
[1743914095020,0.813,590.78,589.87,0.29016306]
[1743914095221,0.813,590.78,589.88,0.29016306]
[1743914095425,0.813,590.78,589.85,0.29016306]
[1743914095622,0.813,590.78,589.9,1.26423726]
[1743914095824,0.813,590.78,589.91,0.29016306]
[1743914098827,0.813,590.78,589.9,1.26423726]
[1743914099023,0.813,590.78,589.91,0.2901573]
[1743914100530,0.813,590.78,589.9,1.26423726]
[1743914100830,0.813,590.78,589.91,0.29015768]
[1743914104934,0.813,590.78,589.89,1.26423726]
[1743914105127,0.813,590.78,589.9,0.29015716]
[1743914106435,0.854,590.77,589.9,0.29015716]
[1743914106729,0.854,590.77,589.89,0.294683]
[1743914106928,0.854,590.77,589.9,0.29015756]
[1743914108134,0.854,590.77,589.89,0.294683]
[1743914108433,0.854,590.77,589.9,0.29015717]
[1743914108629,0.854,590.77,589.89,0.58484267]
[1743914108833,0.854,590.77,589.9,0.29015717]
[1743914109932,0.854,590.77,589.89,0.2946855]
[1743914110131,0.854,590.77,589.9,0.29016037]
[1743914111433,0.854,590.77,589.85,0.29016037]
[1743914111839,0.854,590.77,589.86,0.29015788]
[1743914112039,0.854,590.77,589.87,0.29015788]
[1743914112239,0.854,590.77,589.85,0.29015788]
[1743914112441,0.854,590.77,589.86,0.29015788]
[1743914112637,0.854,590.77,589.88,0.29469049]
[1743914112841,0.854,590.77,589.89,0.29015788]
[1743914113344,0.854,590.77,589.88,0.29469049]
[1743914113538,0.854,590.77,589.89,0.29015686]
[1743914114440,0.854,590.77,589.85,0.29015686]
[1743914115038,0.854,590.77,589.86,0.2901573]
[1743914115338,0.854,590.77,589.87,0.2901573]
[1743914115541,0.854,590.77,589.85,0.2901573]
[1743914115740,0.854,590.77,589.87,0.29468924]